bitfinex-derivatives/quotes_BTCF0:USTF0_20250329
["timestamp","ask_amount","ask_price","bid_price","bid_amount"]
[1743272593953,0.00018187,82508.0,82507.0,1.1163678]
[1743272594654,0.00018187,82508.0,82507.0,0.9763678]
[1743272594953,0.00018187,82508.0,82507.0,1.1163678]
[1743272595952,0.08,82513.0,82512.0,0.1212405]
[1743272596155,0.08,82513.0,82512.0,0.4829605]
[1743272596850,0.08,82513.0,82512.0,0.5628605]
[1743272597354,0.0004,82516.0,82515.0,0.1212361]
[1743272597543,0.0004,82516.0,82515.0,0.1221561]
[1743272597856,0.0004,82516.0,82515.0,0.2721561]
[1743272598657,0.0004,82516.0,82515.0,0.1221561]
[1743272600544,0.0004,82516.0,82515.0,0.2620761]
[1743272601249,0.1216346,82516.0,82515.0,0.2620761]
[1743272601443,0.0004,82516.0,82515.0,0.2620761]
[1743272601857,0.1212318,82518.0,82517.0,0.1212302]
[1743272602154,0.1221518,82518.0,82517.0,0.1221502]
[1743272603246,0.00092,82518.0,82517.0,0.1221502]
[1743272604255,0.1221517,82518.0,82517.0,0.00092]
[1743272604456,0.13398054,82518.0,82517.0,0.00092]
[1743272605159,0.13398054,82518.0,82517.0,0.1221532]
[1743272605354,0.13398054,82518.0,82517.0,0.00092]
[1743272605656,0.1468471,82518.0,82517.0,0.00092]
[1743272607954,0.0606226,82509.0,82499.0,0.00018187]
[1743272608149,0.0606226,82509.0,82499.0,0.12235857]
[1743272608150,0.1212581,82500.0,82499.0,0.12235857]
[1743272608344,0.13400694,82500.0,82499.0,0.12235857]
[1743272609059,0.21580694,82500.0,82499.0,0.12235857]
[1743272609249,0.21580694,82500.0,82499.0,0.24361567]
[1743272609450,0.01274884,82500.0,82499.0,0.24361567]
[1743272609659,0.0412,82507.0,82506.0,0.1212493]
[1743272609851,8e-08,82507.0,82506.0,0.6228493]
[1743272610169,0.00018175,82521.0,82516.0,0.1212346]
[1743272610170,0.0412,82517.0,82516.0,0.1212346]
[1743272610344,0.04212,82517.0,82516.0,0.6228746]
[1743272610549,0.0412,82517.0,82516.0,0.6228746]
[1743272610853,0.04192,82517.0,82516.0,0.6228746]
[1743272611052,0.0412,82517.0,82516.0,0.6228746]
[1743272611358,0.04212,82517.0,82516.0,0.6228746]
[1743272612243,0.1633532,82517.0,82516.0,0.4830346]
[1743272612448,0.1633532,82517.0,82516.0,0.3618]
[1743272612650,0.1663532,82517.0,82516.0,0.3618]
[1743272614058,0.64834108,82517.0,82516.0,0.001]
[1743272614261,0.1212449,82509.0,82508.0,0.1212463]
[1743272614460,0.1221649,82509.0,82508.0,0.1221663]
[1743272614660,0.1221649,82509.0,82508.0,0.00092]
[1743272615259,0.5630649,82509.0,82508.0,0.00092]
[1743272615857,0.1212478,82507.0,82506.0,0.36211163]
[1743272616053,0.1218878,82507.0,82506.0,0.36279163]
[1743272616263,0.12899177,82507.0,82506.0,0.36279163]
[1743272617555,0.12899177,82507.0,82501.0,0.42946309]
[1743272617556,0.1212552,82502.0,82501.0,0.42946309]
[1743272617750,0.48995917,82502.0,82501.0,0.43010309]
[1743272618361,0.50505833,82502.0,82501.0,0.43010309]
[1743272618557,0.48995917,82502.0,82501.0,0.43010309]
[1743272618961,0.57455917,82502.0,82501.0,0.43010309]
[1743272619261,0.57755917,82502.0,82501.0,0.00064]
[1743272619565,0.1212581,82500.0,82491.0,0.0004849]
[1743272619762,0.13892332,82500.0,82491.0,0.0004849]
[1743272620059,0.15093881,82500.0,82491.0,0.0004849]
[1743272620263,0.23303881,82500.0,82491.0,0.0004849]
[1743272620459,0.24486685,82500.0,82499.0,1.552e-05]
[1743272621066,0.2447385,82500.0,82499.0,1.552e-05]
[1743272621365,0.26650059,82500.0,82499.0,1.552e-05]
[1743272621862,0.24550453,82500.0,82499.0,1.552e-05]
[1743272622061,0.23291046,82500.0,82499.0,0.12191512]
[1743272622669,0.22635756,82500.0,82499.0,0.12191512]
[1743272624160,0.22635756,82500.0,82499.0,0.00065552]
[1743272624569,0.2449767,82500.0,82499.0,0.00065552]
[1743272625366,0.25678152,82500.0,82499.0,0.00065552]
[1743272626469,0.25678152,82500.0,82499.0,0.04355552]
[1743272626659,0.25684047,82500.0,82499.0,0.04355552]
[1743272627564,0.2471057,82500.0,82499.0,0.04355552]
[1743272627875,0.23530088,82500.0,82499.0,0.04355552]
[1743272629068,0.23230088,82500.0,82499.0,0.04355552]
[1743272629369,0.23530088,82500.0,82499.0,0.04355552]
[1743272630870,0.14425756,82500.0,82499.0,0.16481512]
[1743272631068,0.14425756,82500.0,82499.0,0.21001512]
[1743272631465,0.14425756,82500.0,82499.0,0.25471512]
[1743272631661,0.14425756,82500.0,82499.0,0.13345552]
[1743272632266,0.22915756,82500.0,82499.0,0.13345552]
[1743272632466,0.24393,82500.0,82499.0,0.13345552]
[1743272632667,0.25353584,82500.0,82499.0,0.13345552]
[1743272634871,0.16563584,82500.0,82499.0,0.25471512]
[1743272635275,0.16563584,82500.0,82499.0,0.13345552]
[1743272635575,0.16563584,82500.0,82499.0,0.08825552]
[1743272635775,0.17493748,82500.0,82499.0,0.04535552]
[1743272636071,0.17493748,82500.0,82499.0,0.04471552]
[1743272636265,0.25983748,82500.0,82499.0,0.04471552]
[1743272636570,0.62063748,82500.0,82499.0,0.04471552]
[1743272637061,0.63574773,82500.0,82499.0,0.04471552]
[1743272637260,0.62063748,82500.0,82499.0,0.04471552]
[1743272637464,0.74185033,82500.0,82499.0,1.552e-05]
[1743272639067,0.38105033,82500.0,82499.0,1.552e-05]
[1743272639371,1.10265033,82500.0,82499.0,1.552e-05]
[1743272639575,1.11775739,82500.0,82499.0,1.552e-05]
[1743272640077,0.75695739,82500.0,82499.0,1.552e-05]
[1743272640575,0.74185033,82500.0,82499.0,1.552e-05]
[1743272641869,0.121267,82494.0,82493.0,0.0445]
[1743272642073,0.060638,82488.0,82475.0,0.00048499]
[1743272642381,0.1212934,82476.0,82475.0,0.00120499]
[1743272642680,0.15999846,82476.0,82475.0,0.00120499]
[1743272642982,0.17887487,82476.0,82475.0,0.00120499]
[1743272643285,0.17887487,82476.0,82475.0,0.12249989]
[1743272643578,0.17887487,82476.0,82475.0,0.09120499]
[1743272644582,0.19184031,82476.0,82475.0,0.21249989]
[1743272644879,0.19184031,82476.0,82475.0,0.20949989]
[1743272645082,0.19184031,82476.0,82475.0,0.21249989]
[1743272645683,0.19284031,82476.0,82475.0,0.20949989]
[1743272646671,0.19284031,82476.0,82475.0,0.08820499]
[1743272647575,0.23474031,82476.0,82475.0,0.08820499]
[1743272647773,0.59554031,82476.0,82475.0,0.08820499]
[1743272647979,0.1213052,82468.0,82467.0,0.00018187]
[1743272648180,0.14819477,82468.0,82467.0,0.00082187]
[1743272648367,0.1604294,82468.0,82467.0,0.00082187]
[1743272648774,0.24772208,82468.0,82467.0,0.00082187]
[1743272649274,0.24772208,82468.0,82467.0,0.00182187]
[1743272650683,0.23548745,82468.0,82467.0,0.00182187]
[1743272650882,0.24767814,82468.0,82467.0,0.00182187]
[1743272651077,0.24767814,82468.0,82467.0,0.00282187]
[1743272651480,0.24767814,82468.0,82467.0,0.09112187]
[1743272654382,0.24767814,82468.0,82467.0,0.09048187]
[1743272654580,0.24767814,82468.0,82467.0,0.09112187]
[1743272654779,0.20567814,82468.0,82467.0,0.09112187]
[1743272658084,0.20563307,82468.0,82467.0,0.09112187]
[1743272658584,0.20563307,82468.0,82467.0,0.00282187]
[1743272658787,0.20563307,82468.0,82467.0,0.00218187]
[1743272658998,0.22176742,82468.0,82467.0,0.00218187]
[1743272659287,0.26696742,82468.0,82467.0,0.00218187]
[1743272660279,0.26996742,82468.0,82467.0,0.00118187]
[1743272660980,0.27396742,82468.0,82467.0,0.00018187]
[1743272661387,0.27403413,82468.0,82467.0,0.00018187]
[1743272661888,0.2740365,82468.0,82467.0,0.00018187]
[1743272663082,0.2618218,82468.0,82467.0,0.00018187]
[1743272663277,0.63484507,82468.0,82467.0,0.00018187]
[1743272664992,0.61871072,82468.0,82467.0,0.00018187]
[1743272665984,0.61868697,82468.0,82467.0,0.00018187]
[1743272666585,0.72761746,82468.0,82467.0,0.00018187]
[1743272666987,0.72756991,82468.0,82467.0,0.00018187]
[1743272668789,0.7086935,82468.0,82467.0,0.00018187]
[1743272668991,0.7281455,82468.0,82467.0,0.00018187]
[1743272669489,0.0606558,82464.0,82459.0,0.00048509]
[1743272669800,0.121317,82460.0,82459.0,0.00112509]
[1743272669986,0.14419482,82460.0,82459.0,0.00112509]
[1743272670186,0.23029482,82460.0,82459.0,0.00112509]
[1743272670684,0.25011874,82460.0,82459.0,0.00112509]
[1743272671592,0.25211874,82460.0,82459.0,0.00112509]
[1743272672492,0.25411874,82460.0,82459.0,0.00112509]
[1743272673694,0.25411874,82460.0,82459.0,0.00048509]
[1743272677992,0.26924384,82460.0,82459.0,0.00048509]
[1743272678187,0.25411874,82460.0,82459.0,0.00048509]
[1743272678392,0.26924384,82460.0,82459.0,0.00048509]
[1743272678595,0.25411874,82460.0,82459.0,0.00048509]
[1743272680689,0.26924384,82460.0,82459.0,0.00048509]
[1743272683287,0.25411874,82460.0,82459.0,0.00048509]
[1743272685390,0.25411874,82460.0,82451.0,0.00018187]
[1743272685391,0.0606625,82455.0,82451.0,0.00018187]
[1743272685697,0.4821287,82452.0,82451.0,0.00082187]
[1743272685901,0.50544488,82452.0,82451.0,0.00082187]
[1743272686200,0.1213361,82447.0,82446.0,0.19019912]
[1743272686385,0.16145099,82447.0,82446.0,0.19083912]
[1743272686592,0.17659714,82447.0,82446.0,0.19083912]
[1743272686895,0.16145099,82447.0,82446.0,0.00064]
[1743272687096,0.22140299,82447.0,82446.0,0.00064]
[1743272687300,0.23654623,82447.0,82446.0,0.00064]
[1743272687607,0.23384359,82447.0,82446.0,0.00064]
[1743272687801,0.24898683,82447.0,82446.0,0.00064]
[1743272688197,0.21728489,82447.0,82446.0,0.00064]
[1743272688494,0.21728489,82447.0,82446.0,0.00264]
[1743272688687,0.26068489,82447.0,82446.0,0.00264]
[1743272688889,0.26068489,82447.0,82446.0,0.00364]
[1743272689299,0.26068489,82447.0,82446.0,0.00264]
[1743272689509,0.26368489,82447.0,82446.0,0.00264]
[1743272689804,0.26368489,82447.0,82446.0,0.00064]
[1743272690002,0.18378489,82447.0,82446.0,0.00064]
[1743272691706,0.17978489,82447.0,82446.0,0.00064]
[1743272691910,0.18378489,82447.0,82446.0,0.00064]
[1743272692508,0.18378489,82447.0,82444.0,0.0855]
[1743272692509,0.121339,82445.0,82444.0,0.0855]
[1743272692807,0.50565519,82445.0,82444.0,0.08614]
[1743272693008,0.50565519,82445.0,82444.0,0.0424]
[1743272693208,0.1213405,82444.0,82443.0,0.00048518]
[1743272693506,0.18485669,82444.0,82443.0,0.00048518]
[1743272693701,0.22505669,82444.0,82443.0,0.00048518]
[1743272694103,0.24450869,82444.0,82443.0,0.00048518]
[1743272694302,0.25964063,82444.0,82443.0,0.00048518]
[1743272694615,0.24450869,82444.0,82443.0,0.00048518]
[1743272695208,0.25963835,82444.0,82443.0,0.00048518]
[1743272695908,0.24750869,82444.0,82443.0,0.00048518]
[1743272696415,0.25050869,82444.0,82443.0,0.00048518]
[1743272697215,0.17030869,82444.0,82443.0,0.00048518]
[1743272697399,0.17030869,82444.0,82443.0,0.00120518]
[1743272700301,0.04896819,82444.0,82443.0,0.12254718]
[1743272700515,0.17030869,82444.0,82443.0,0.48334718]
[1743272700712,0.04896819,82444.0,82443.0,0.48334718]
[1743272700903,0.17030869,82444.0,82443.0,0.56674718]
[1743272701709,0.16988802,82444.0,82443.0,0.56674718]
[1743272704009,0.03628947,82444.0,82443.0,0.56674718]
[1743272704205,0.10891108,82453.0,82452.0,0.1213287]
[1743272704523,0.23107838,82453.0,82452.0,0.4827687]
[1743272705019,0.23107838,82453.0,82452.0,0.2611687]
[1743272705219,0.23107838,82453.0,82452.0,0.3423687]
[1743272705409,0.23407838,82453.0,82452.0,0.3423687]
[1743272705714,0.23807838,82453.0,82452.0,0.3423687]
[1743272706213,0.23407838,82453.0,82452.0,0.3423687]
[1743272706403,0.23107838,82453.0,82452.0,0.3423687]
[1743272706609,0.23107838,82453.0,82452.0,0.7031687]
[1743272707313,0.23107838,82453.0,82452.0,0.71545999]
[1743272707717,0.23107838,82453.0,82452.0,0.7031687]
[1743272710722,0.1221673,82453.0,82452.0,0.3423687]
[1743272710922,0.1221673,82453.0,82452.0,0.7031687]
[1743272711916,0.13426818,82453.0,82452.0,0.2031687]
[1743272712421,0.1221673,82453.0,82452.0,0.2031687]
[1743272712720,0.17566786,82453.0,82452.0,0.2031687]
[1743272713719,0.1635673,82453.0,82452.0,0.08184]
[1743272714020,0.1213405,82444.0,82443.0,0.42195518]
[1743272714317,0.13348672,82444.0,82443.0,0.42259518]
[1743272714507,0.13348656,82444.0,82443.0,0.42259518]
[1743272714913,0.13348656,82444.0,82443.0,0.06179518]
[1743272715108,0.13432656,82444.0,82443.0,0.06279518]
[1743272715317,0.14633798,82444.0,82443.0,0.42359518]
[1743272715725,0.21819192,82444.0,82443.0,0.50819518]
[1743272715916,0.23043489,82444.0,82443.0,0.50719518]
[1743272716108,0.24010209,82444.0,82443.0,0.50719518]
[1743272716514,0.24762276,82444.0,82443.0,0.14639518]
[1743272717617,0.24762276,82444.0,82443.0,0.14839518]
[1743272718324,0.24762276,82444.0,82443.0,0.14739518]
[1743272719319,0.24862276,82444.0,82443.0,0.14739518]
[1743272719517,0.24862276,82444.0,82443.0,0.00212518]
[1743272719717,0.24862276,82444.0,82443.0,0.00148518]
[1743272720110,0.24862276,82444.0,82443.0,0.00048518]
[1743272720926,0.24762276,82444.0,82443.0,0.00048518]
[1743272721222,0.24796517,82444.0,82443.0,0.00048518]
[1743272721925,0.24896517,82444.0,82443.0,0.00048518]
[1743272723029,0.24904778,82444.0,82443.0,0.00048518]
[1743272725327,0.35795886,82444.0,82443.0,0.00048518]
[1743272726727,0.33562367,82444.0,82443.0,0.00048518]
[1743272726926,0.35781867,82444.0,82443.0,0.00048518]
[1743272727326,0.35783982,82444.0,82443.0,0.00048518]
[1743272728531,0.37296746,82444.0,82443.0,0.00048518]
[1743272728718,0.35792768,82444.0,82443.0,0.00048518]
[1743272729927,0.35792768,82444.0,82443.0,8e-08]
[1743272730134,0.1213641,82428.0,82427.0,0.00048527]
[1743272730326,0.50530811,82428.0,82427.0,0.00136527]
[1743272730632,0.52043383,82428.0,82427.0,0.00136527]
[1743272730836,0.6266033,82428.0,82427.0,0.00136527]
[1743272731020,1.10569017,82428.0,82427.0,7e-08]
[1743272731225,0.1213788,82418.0,82412.0,0.42946309]
[1743272731424,0.52181759,82418.0,82417.0,0.32883583]
[1743272731630,0.54134968,82418.0,82417.0,0.32883583]
[1743272731832,0.71948795,82418.0,82417.0,0.32883583]
[1743272732131,0.79926248,82418.0,82417.0,0.32883583]
[1743272733418,0.79926248,82418.0,82417.0,0.00064]
[1743272733619,0.1213876,82412.0,82411.0,0.00048537]
[1743272733830,0.16102639,82412.0,82411.0,0.00048537]
[1743272734233,0.18055848,82412.0,82411.0,0.00048537]
[1743272734440,0.26065848,82412.0,82411.0,0.00048537]
[1743272734736,0.26979795,82412.0,82411.0,0.00048537]
[1743272735123,0.26979795,82412.0,82411.0,0.00148537]
[1743272735425,0.26979795,82412.0,82411.0,0.00248537]
[1743272736335,0.63059795,82412.0,82411.0,0.00248537]
[1743272738224,0.61434317,82412.0,82411.0,0.00248537]
[1743272739130,0.25354317,82412.0,82411.0,0.00248537]
[1743272739636,0.25354317,82412.0,82411.0,0.04328537]
[1743272739826,0.25354317,82412.0,82411.0,0.12458537]
[1743272744937,0.25354317,82412.0,82411.0,0.12458537]
[1743272747425,0.060698,82407.0,82400.0,0.4608]
[1743272747634,0.1214009,82403.0,82402.0,0.1209]
[1743272747833,0.13247143,82403.0,82402.0,0.12154]
[1743272748437,0.15200352,82403.0,82402.0,0.12154]
[1743272748837,0.15200352,82403.0,82402.0,0.12454]
[1743272749341,0.15200352,82403.0,82402.0,0.12754]
[1743272750129,0.16453559,82403.0,82402.0,0.12754]
[1743272750333,0.17680342,82403.0,82402.0,0.12754]
[1743272750932,0.17680362,82403.0,82402.0,0.12754]
[1743272751326,0.17780362,82403.0,82402.0,0.12154]
[1743272752037,0.17680362,82403.0,82402.0,0.12154]
[1743272752241,0.18080362,82403.0,82402.0,0.12154]
[1743272755447,0.18080362,82403.0,82402.0,0.12154]
[1743272757746,0.18080362,82403.0,82402.0,0.08174]
[1743272758551,0.1214038,82401.0,82400.0,0.1]
[1743272758742,0.16003553,82401.0,82400.0,0.10072]
[1743272759050,0.1214082,82398.0,82397.0,0.0815]
[1743272759345,0.16451885,82398.0,82397.0,0.0815]
[1743272759946,0.1214274,82385.0,82384.0,0.122]
[1743272760145,0.1214274,82385.0,82384.0,0.12264]
[1743272760146,0.50576596,82385.0,82384.0,0.12264]
[1743272760446,0.50576596,82385.0,82384.0,0.2434289]
[1743272760447,0.16458133,82385.0,82384.0,0.2434289]
[1743272760646,0.16458133,82385.0,82384.0,0.12268]
[1743272761344,0.14257938,82385.0,82384.0,0.12268]
[1743272761743,0.14257938,82385.0,82384.0,0.12568]
[1743272762043,0.14257938,82385.0,82384.0,0.2481089]
[1743272762552,0.14257938,82385.0,82384.0,0.2461089]
[1743272763845,0.15520249,82385.0,82384.0,0.2461089]
[1743272765351,0.15499269,82385.0,82384.0,0.2461089]
[1743272766149,0.02094218,82385.0,82384.0,0.2461089]
[1743272766547,0.02092476,82385.0,82384.0,0.2461089]
[1743272766744,0.01964476,82385.0,82384.0,0.3848689]
[1743272767349,0.14107216,82385.0,82384.0,0.3848689]
[1743272768156,0.12894807,82385.0,82384.0,0.3848689]
[1743272768656,0.13030807,82385.0,82384.0,0.3848689]
[1743272769048,0.14198168,82385.0,82384.0,0.39706734]
[1743272769550,0.00847867,82385.0,82384.0,0.39706734]
[1743272769753,0.00711867,82385.0,82384.0,0.39706734]
[1743272769945,0.10878922,82393.0,82392.0,0.1214171]
[1743272770148,0.01361134,82393.0,82392.0,0.4828571]
[1743272770346,0.12295758,82393.0,82392.0,0.4828571]
[1743272770756,0.12295758,82393.0,82392.0,0.5654571]
[1743272771258,0.00254198,82393.0,82392.0,0.5654571]
[1743272771454,0.00354198,82393.0,82392.0,0.5654571]
[1743272772252,0.12495758,82393.0,82392.0,0.5654571]
[1743272772459,0.12487758,82393.0,82392.0,0.5654571]
[1743272772865,0.00346198,82393.0,82392.0,0.5654571]
[1743272773356,0.00218198,82393.0,82392.0,0.5654571]
[1743272774160,0.10860724,82404.0,82399.0,0.1214068]
[1743272774346,0.01329067,82400.0,82399.0,0.4828468]
[1743272774655,0.10860724,82404.0,82401.0,0.0607012]
[1743272774656,0.1821035,82402.0,82401.0,0.0607012]
[1743272774850,0.19542102,82402.0,82401.0,0.1044612]
[1743272775060,0.19542102,82402.0,82401.0,0.1447612]
[1743272775361,0.29359396,82402.0,82401.0,0.1447612]
[1743272775856,0.29659396,82402.0,82401.0,0.1447612]
[1743272776359,0.30059396,82402.0,82401.0,0.1447612]
[1743272776658,0.30059396,82402.0,82401.0,0.0620612]
[1743272780057,0.30059396,82402.0,82401.0,0.00136]
[1743272780250,0.1214127,82395.0,82394.0,0.2614153]
[1743272780553,0.13465022,82395.0,82394.0,0.2621753]
[1743272780758,0.13465022,82395.0,82394.0,0.3021753]
[1743272780960,0.13465022,82395.0,82394.0,0.1807663]
[1743272781255,0.22100866,82395.0,82394.0,0.1807663]
[1743272781557,0.22400866,82395.0,82394.0,0.1807663]
[1743272781754,0.22400866,82395.0,82394.0,0.00076]
[1743272781957,0.22400866,82395.0,82393.0,0.00018198]
[1743272781958,0.1214141,82394.0,82393.0,0.00018198]
[1743272782152,0.13465162,82394.0,82393.0,0.00018198]
[1743272782352,0.21991006,82394.0,82393.0,0.00018198]
[1743272783147,0.22091006,82394.0,82393.0,0.00018198]
[1743272783658,0.22091006,82394.0,82393.0,0.12159758]
[1743272783864,0.22091006,82394.0,82393.0,0.12223758]
[1743272784165,0.22291006,82394.0,82393.0,0.12223758]
[1743272784858,0.22291006,82394.0,82393.0,0.00082198]
[1743272785663,0.22291006,82394.0,82393.0,0.12223758]
[1743272786063,0.22291006,82394.0,82393.0,0.00082198]
[1743272786258,0.22291006,82394.0,82393.0,0.12223758]
[1743272786767,0.22291006,82394.0,82393.0,0.00082198]
[1743272786954,0.22291006,82394.0,82393.0,0.00018198]
[1743272787466,0.22291006,82394.0,82393.0,0.00154198]
[1743272787658,0.22291006,82394.0,82393.0,0.12159758]
[1743272787866,0.10149596,82394.0,82393.0,0.12223758]
[1743272788057,0.22291006,82394.0,82393.0,0.12223758]
[1743272788560,0.22291006,82394.0,82393.0,0.16183758]
[1743272789566,0.33199931,82394.0,82393.0,0.16183758]
[1743272791070,0.32004179,82394.0,82393.0,0.16183758]
[1743272791273,0.33218356,82394.0,82393.0,0.16183758]
[1743272793177,0.22309431,82394.0,82393.0,0.16183758]
[1743272793365,0.22309431,82394.0,82393.0,0.20193758]
[1743272795272,0.22311141,82394.0,82393.0,0.20193758]
[1743272798475,0.22311141,82394.0,82393.0,0.56273758]
[1743272800067,0.22311141,82394.0,82393.0,0.20193758]
[1743272800373,0.10169731,82394.0,82393.0,0.56273758]
[1743272800672,0.22311141,82394.0,82393.0,0.56273758]
[1743272800874,0.10169731,82394.0,82393.0,0.56273758]
[1743272801270,0.22311141,82394.0,82393.0,0.56273758]
[1743272802579,0.10169731,82394.0,82393.0,0.56273758]
[1743272802874,0.10041731,82394.0,82393.0,0.56273758]
[1743272803080,0.22183141,82394.0,82393.0,0.56273758]
[1743272803276,0.22311141,82394.0,82393.0,0.56273758]
[1743272803874,0.05979731,82394.0,82393.0,0.56473758]
[1743272804078,0.05979731,82394.0,82393.0,0.56673758]
[1743272804579,0.17415297,82394.0,82393.0,0.56573758]
[1743272804783,0.17415297,82394.0,82393.0,0.56773758]
[1743272805078,0.17415297,82394.0,82393.0,0.56473758]
[1743272805281,0.18111654,82394.0,82393.0,0.56673758]
[1743272805779,0.05970244,82394.0,82393.0,0.56673758]
[1743272806169,0.05842244,82394.0,82393.0,0.56673758]
[1743272806367,0.05145887,82394.0,82393.0,0.56673758]
[1743272807273,0.0393,82394.0,82393.0,0.56673758]
[1743272807983,0.10908925,82402.0,82401.0,0.1214038]
[1743272808277,0.18173281,82410.0,82409.0,0.121392]
[1743272808473,0.18301281,82410.0,82409.0,0.621392]
[1743272808668,0.30440341,82410.0,82409.0,0.621392]
[1743272809084,0.18301281,82410.0,82409.0,0.697192]
[1743272809678,0.18301281,82410.0,82409.0,0.70985554]
[1743272809882,0.18301281,82410.0,82409.0,0.697192]
[1743272810185,0.00146198,82410.0,82409.0,0.697192]
[1743272810678,0.00146198,82410.0,82409.0,0.336392]
[1743272810882,0.00146198,82410.0,82409.0,0.697192]
[1743272811084,0.00546198,82410.0,82409.0,0.70953907]
[1743272811381,0.00546198,82410.0,82409.0,0.697192]
[1743272811584,0.12685258,82410.0,82409.0,0.558712]
[1743272811774,0.20725258,82410.0,82409.0,0.197912]
[1743272811973,0.08586198,82410.0,82409.0,0.197912]
[1743272812374,0.05266263,82410.0,82409.0,0.197912]
[1743272812584,0.01246263,82410.0,82409.0,0.197912]
[1743272812973,0.00546198,82410.0,82409.0,0.197912]
[1743272814282,0.00418198,82410.0,82409.0,0.197912]
[1743272818385,0.00418198,82410.0,82409.0,0.558712]
[1743272818978,0.08068198,82410.0,82409.0,0.558712]
[1743272821888,0.08068198,82410.0,82409.0,0.660132]
[1743272822083,0.20207258,82410.0,82409.0,0.87727666]
[1743272822297,0.20207258,82410.0,82409.0,0.70005666]
[1743272824585,0.21432756,82410.0,82409.0,0.70005666]
[1743272824783,0.21568756,82410.0,82409.0,0.70005666]
[1743272824982,0.21432756,82410.0,82409.0,0.70005666]
[1743272825783,0.21432756,82410.0,82409.0,0.36152]
[1743272825984,0.21560756,82410.0,82409.0,0.482912]
[1743272826295,0.22256829,82410.0,82409.0,0.482912]
[1743272826586,0.2346117,82410.0,82409.0,0.00072]
[1743272827192,0.2346117,82410.0,82409.0,0.122112]
[1743272828196,0.23464536,82410.0,82409.0,0.122112]
[1743272828381,0.23464536,82410.0,82409.0,0.00072]
[1743272828583,0.59544536,82410.0,82409.0,0.00072]
[1743272828988,0.59344536,82410.0,82409.0,0.00072]
[1743272829291,0.59144536,82410.0,82409.0,0.00072]
[1743272829483,0.59244536,82410.0,82409.0,0.00072]
[1743272829678,0.59444536,82410.0,82409.0,0.00072]
[1743272829885,0.58236829,82410.0,82409.0,0.00072]
[1743272830082,0.1213994,82404.0,82403.0,0.1214004]
[1743272830288,0.13483714,82404.0,82403.0,0.1220804]
[1743272830593,0.14179787,82404.0,82403.0,0.1220804]
[1743272831192,0.21679787,82404.0,82403.0,0.1220804]
[1743272831694,0.21679787,82404.0,82403.0,0.00068]
[1743272831897,0.21679787,82404.0,82403.0,0.1220809]
[1743272832792,0.21676719,82404.0,82403.0,0.00068]
[1743272833688,0.21676719,82404.0,82403.0,0.1220809]
[1743272834195,0.21672103,82404.0,82403.0,0.1220809]
[1743272834494,0.21672103,82404.0,82403.0,0.1593809]
[1743272834693,0.21772103,82404.0,82403.0,0.1593809]
[1743272835290,0.21672103,82404.0,82403.0,0.1593809]
[1743272835592,0.21671492,82404.0,82403.0,0.1593809]
[1743272835792,0.21771492,82404.0,82403.0,0.1593809]
[1743272836696,0.21671492,82404.0,82403.0,0.03798]
[1743272837397,0.21671492,82404.0,82403.0,0.1593809]
[1743272837796,0.21671492,82404.0,82403.0,0.1220809]
[1743272838897,0.21671492,82404.0,82403.0,0.00068]
[1743272839400,0.21671492,82404.0,82403.0,0.1220809]
[1743272839788,0.21671492,82404.0,82403.0,0.00068]
[1743272840195,0.21671492,82404.0,82403.0,0.1220809]
[1743272843004,0.1976794,82404.0,82403.0,0.1220809]
[1743272843997,0.20983823,82404.0,82403.0,0.1220809]
[1743272844187,0.20983823,82404.0,82403.0,0.00068]
[1743272844392,0.21700191,82404.0,82403.0,0.00068]
[1743272844798,0.21699762,82404.0,82403.0,0.00068]
[1743272845400,0.21799762,82404.0,82403.0,0.00068]
[1743272845594,0.57879762,82404.0,82403.0,0.00068]
[1743272845793,0.1214127,82395.0,82394.0,0.21714466]
[1743272845991,0.13492724,82395.0,82394.0,0.21778466]
[1743272846204,0.15165192,82395.0,82394.0,0.33919876]
[1743272846500,0.15165192,82395.0,82394.0,0.37679876]
[1743272846697,0.22443226,82395.0,82394.0,0.37679876]
[1743272847199,0.21487126,82395.0,82394.0,0.37779876]
[1743272847403,0.21487126,82395.0,82394.0,0.1606541]
[1743272847700,0.21487126,82395.0,82394.0,0.00164]
[1743272848099,0.21487126,82395.0,82394.0,0.00264]
[1743272849106,0.22704623,82395.0,82394.0,0.00264]
[1743272852209,0.22704623,82395.0,82394.0,0.002]
[1743272853008,0.22704623,82395.0,82394.0,0.00264]
[1743272854408,0.22702014,82395.0,82394.0,0.00264]
[1743272854608,0.22702014,82395.0,82394.0,0.002]
[1743272855403,0.19022014,82395.0,82394.0,0.1586141]
[1743272855606,0.02073247,82395.0,82394.0,0.1950941]
[1743272855811,0.18155083,82406.0,82405.0,0.1213979]
[1743272856108,0.18243084,82406.0,82405.0,0.6209179]
[1743272856309,0.30382734,82406.0,82405.0,0.6335119]
[1743272856915,0.30382734,82406.0,82405.0,0.7053119]
[1743272857211,0.30482734,82406.0,82405.0,0.7053119]
[1743272857514,0.18343084,82406.0,82405.0,0.7053119]
[1743272857814,0.30482734,82406.0,82405.0,0.7053119]
[1743272858214,0.30682734,82406.0,82405.0,0.7053119]
[1743272858913,0.12527651,82406.0,82405.0,0.9958067]
[1743272859216,0.12427651,82406.0,82405.0,0.9958067]
[1743272859713,0.1233965,82406.0,82405.0,0.9832127]
[1743272860016,0.1233965,82406.0,82405.0,0.9825327]
[1743272860717,0.1233965,82406.0,82405.0,0.8444927]
[1743272860919,0.1233965,82406.0,82405.0,0.7230948]
[1743272862118,0.1975965,82406.0,82405.0,0.7230948]
[1743272862423,0.1975965,82406.0,82405.0,0.8444927]
[1743272862720,0.1975965,82406.0,82405.0,0.77115981]
[1743272863305,0.1611965,82406.0,82405.0,0.77115981]
[1743272863516,0.1233965,82406.0,82405.0,0.77115981]
[1743272864711,0.12427651,82406.0,82405.0,0.77179981]
[1743272866919,0.12427651,82406.0,82405.0,0.5546379]
[1743272867423,0.12427651,82406.0,82405.0,0.1938379]
[1743272871644,0.12427651,82406.0,82405.0,0.5546379]
[1743272874556,0.12427651,82406.0,82405.0,0.39804]
[1743272874740,0.13620891,82406.0,82405.0,0.36144]
[1743272874946,0.17210891,82406.0,82405.0,0.36144]
[1743272875146,0.21120891,82406.0,82405.0,0.36144]
[1743272875745,0.21120891,82406.0,82405.0,0.00064]
[1743272878842,0.1214038,82401.0,82400.0,0.21716191]
[1743272879147,0.1333362,82401.0,82400.0,0.21716191]
[1743272879448,0.14129117,82401.0,82400.0,0.21788191]
[1743272879835,0.21829117,82401.0,82400.0,0.21788191]
[1743272880348,0.21829117,82401.0,82400.0,0.33928721]
[1743272881243,0.21829117,82401.0,82400.0,0.37918721]
[1743272881446,0.21829117,82401.0,82400.0,0.41568721]
[1743272881746,0.21129621,82401.0,82400.0,0.41568721]
[1743272882050,0.21129621,82401.0,82400.0,0.41468721]
[1743272882653,0.21129621,82401.0,82400.0,0.29328191]
[1743272884155,0.21129621,82401.0,82400.0,0.41468721]
[1743272884549,0.21129621,82401.0,82400.0,0.29328191]